bitfinex/quotes_ETHUSD_20240810
["timestamp","ask_amount","ask_price","bid_price","bid_amount"]
[1723315259652,0.07943594,2617.3,2616.8,1.91072]
[1723315260266,1.91064,2617.0,2616.4,2.2607]
[1723315260541,0.07900256,2616.9,2616.4,2.2607]
[1723315260732,0.07900256,2616.9,2616.4,4.17171]
[1723315260903,0.07900256,2616.9,2616.6,1.91082]
[1723315261110,3.0,2617.1,2616.6,1.91082]
[1723315261424,3.0,2617.1,2616.7,1.91079]
[1723315261425,0.07906066,2617.0,2616.7,1.91079]
[1723315261609,0.07906066,2617.0,2616.7,2.292951]
[1723315261949,3.0,2617.3,2616.7,2.292951]
[1723315262108,3.0,2617.3,2616.7,1.91079]
[1723315262109,0.07932914,2617.2,2616.7,1.91079]
[1723315262905,2.07932914,2617.3,2616.7,1.91079]
[1723315263247,0.0767501,2617.2,2616.7,1.91075]
[1723315263423,0.0767501,2617.2,2616.7,3.82149]
[1723315263617,0.0767501,2617.2,2616.7,2.292889]
[1723315264237,0.0767501,2617.2,2616.7,4.203639]
[1723315264409,0.0767501,2617.2,2616.8,2.2607]
[1723315264608,0.0767501,2617.2,2617.0,4.17128]
[1723315264858,7.3,2617.6,2617.1,1.91045]
[1723315265035,1.91001,2617.8,2617.2,0.608173]
[1723315265433,1.90987,2618.0,2617.3,4.24739699]
[1723315265646,1.91,2617.8,2617.3,2.2607]
[1723315266027,1.90987,2618.0,2617.3,4.17101]
[1723315266285,9.20972,2618.2,2617.4,0.07640505]
[1723315266429,1.90972,2618.2,2617.4,0.07640505]
[1723315266769,6.1405,2618.4,2617.7,1.91007]
[1723315266972,4.23089,2618.4,2617.7,1.91002]
[1723315267141,9.6213,2618.8,2617.8,2.33709085]
[1723315267346,1.90986,2618.0,2617.4,2.2607]
[1723315267538,1.90986,2618.0,2617.2,2.761]
[1723315267539,1.91004,2617.8,2617.2,2.2607]
[1723315267737,1.91004,2617.8,2617.2,4.17113]
[1723315267952,2.292032,2617.8,2617.2,4.17113]
[1723315268160,4.202092,2617.8,2617.2,4.17113]
[1723315268463,1.91007,2617.7,2617.2,2.2607]
[1723315269375,2.292032,2617.8,2617.2,2.2607]
[1723315269575,3.0,2617.9,2617.2,2.2607]
[1723315269791,3.0,2617.9,2617.4,1.91027]
[1723315269932,3.0,2617.9,2617.2,2.2607]
[1723315269933,3.0,2617.9,2617.6,2.2607]
[1723315270131,4.90973,2618.2,2617.6,2.2607]
[1723315270468,1.90983,2618.1,2617.6,2.2607]
[1723315270665,4.9847885,2618.1,2617.6,2.2607]
[1723315270871,1.9847885,2618.1,2617.6,2.2607]
[1723315271263,0.0749585,2618.1,2617.6,2.677785]
[1723315271448,0.0749585,2618.1,2617.6,2.2607]
[1723315272395,1.9847685,2618.1,2617.6,2.2607]
[1723315272602,4.9847385,2618.1,2617.6,2.2607]
[1723315272788,1.90986,2618.0,2617.6,2.2607]
[1723315273165,0.07381957,2617.9,2617.6,2.2607]
[1723315274196,1.91,2617.8,2617.4,2.4561]
[1723315274698,0.07358739,2617.7,2617.4,2.4561]
[1723315274897,1.91,2617.8,2617.2,14.47752]
[1723315275100,0.07363973,2617.7,2617.2,14.47752]
[1723315276308,0.07363973,2617.7,2617.3,1.91035]
[1723315276492,3.0,2617.9,2617.3,1.91035]
[1723315276817,0.07375366,2617.8,2617.3,1.91035]
[1723315277466,0.07375366,2617.8,2617.4,1.98665721]
[1723315277713,0.07375366,2617.8,2617.3,3.54914]
[1723315279106,1.98375366,2617.8,2617.2,12.5671]
[1723315279311,1.98375366,2617.8,2617.2,5.2171]
[1723315280278,3.89380366,2617.8,2617.2,5.2171]
[1723315280807,1.98375366,2617.8,2617.2,5.2171]
[1723315281112,3.89380366,2617.8,2617.2,5.2171]
[1723315281716,1.98375366,2617.8,2617.2,5.2171]
[1723315282291,1.98375366,2617.8,2617.2,5.929855]
[1723315282496,1.91015,2617.6,2617.2,2.761]
[1723315282698,0.07377426,2617.5,2617.1,1.91046]
[1723315282902,7.28498,2618.0,2617.3,1.91036]
[1723315283112,0.07418062,2617.9,2617.3,1.91036]
[1723315284023,0.07418062,2617.9,2617.4,1.91026]
[1723315284200,0.07418062,2617.9,2617.6,4.36624]
[1723315284400,0.07418062,2617.9,2617.6,2.4561]
[1723315284807,3.0,2618.1,2617.6,2.4561]
[1723315284976,0.07412778,2617.8,2617.6,2.4561]
[1723315285183,1.90991,2618.0,2617.6,2.4561]
[1723315285408,0.07397301,2617.7,2617.4,2.4561]
[1723315285606,0.07397301,2617.7,2617.3,2.814102]
[1723315285607,4.28503,2617.9,2617.3,2.814102]
[1723315285797,0.07437658,2617.6,2617.3,1.91031]
[1723315285990,5.204524,2617.9,2617.3,1.91031]
[1723315286212,0.07374696,2617.5,2617.3,1.91031]
[1723315286515,0.07364535,2617.4,2617.3,1.91031]
[1723315286680,5.204524,2617.9,2617.3,1.91031]
[1723315286882,0.07405175,2617.8,2617.3,1.91031]
[1723315287106,0.79290033,2617.8,2617.3,1.91031]
[1723315287319,1.91008,2617.7,2617.2,2.4561]
[1723315287504,0.07382197,2617.6,2617.1,1.9105]
[1723315288219,1.91008,2617.7,2617.1,1.9105]
[1723315288431,0.07381191,2617.5,2617.1,1.9105]
[1723315288602,0.07391351,2617.6,2617.1,2.814325]
[1723315288786,0.0737103,2617.4,2617.1,1.90901995]
[1723315288986,0.07381191,2617.5,2617.1,1.90901995]
[1723315289295,2.62885858,2617.8,2617.1,1.90901995]
[1723315289484,0.0737103,2617.4,2617.2,1.91042]
[1723315289688,2.62885858,2617.8,2617.2,2.537974]
[1723315289689,1.91001,2617.8,2617.2,2.537974]
[1723315289898,4.91001,2617.8,2617.2,2.537974]
[1723315290102,4.91001,2617.8,2617.4,1.91028]
[1723315290103,0.07405621,2617.7,2617.4,1.91028]
[1723315290402,5.3751,2617.9,2617.4,1.91028]
[1723315290619,0.07395462,2617.6,2617.4,1.91028]
[1723315290914,5.3751,2617.9,2617.4,2.3627401]
[1723315291085,5.3751,2617.9,2617.3,3.89707701]
[1723315291286,5.3751,2617.9,2617.3,1.98671701]
[1723315291514,1.98410232,2617.8,2617.2,0.627554]
[1723315291700,1.91017,2617.6,2617.0,2.4561]
[1723315291912,0.07374205,2617.5,2617.1,1.91049]
[1723315292599,1.91022,2617.5,2616.8,9.6016]
[1723315292923,1.91022,2617.5,2617.0,1.91057]
[1723315292924,0.07364044,2617.4,2617.0,1.91057]
[1723315293126,0.07364044,2617.4,2617.1,1.9105]
[1723315293435,0.07364044,2617.4,2616.9,1.91059]
[1723315293730,1.91022,2617.5,2616.9,1.91059]
[1723315293905,2.2771,2617.3,2616.9,1.91059]
[1723315294333,0.0732566,2617.2,2616.9,1.91059]
[1723315294641,2.2771,2617.3,2616.9,1.91059]
[1723315295327,0.0732566,2617.2,2616.9,3.0659399]
[1723315295517,4.18732,2617.5,2617.0,1.91057]
[1723315295693,2.2771,2617.5,2617.0,1.91057]
[1723315295893,0.07312986,2617.4,2617.0,1.91057]
[1723315296506,0.07312986,2617.4,2616.9,3.0659399]
[1723315297318,0.07312986,2617.4,2616.9,1.91059]
[1723315301006,0.07312986,2617.4,2616.8,1.91071]
[1723315301007,1.98343986,2617.4,2616.8,1.91071]
[1723315301504,0.07312986,2617.4,2616.8,1.91071]
[1723315302138,0.07312986,2617.4,2616.9,1.91065]
[1723315302294,0.07312986,2617.4,2616.9,1.9106]
[1723315302503,0.07312986,2617.4,2616.9,2.3309509]
[1723315302706,0.07312986,2617.4,2617.1,1.9105]
[1723315302912,4.9101,2617.7,2617.1,4.1621]
[1723315303139,4.9101,2617.7,2617.1,4.16205]
[1723315303348,0.07399666,2617.6,2617.3,1.91031]
[1723315304530,0.07399666,2617.6,2617.1,6.53077009]
[1723315304847,0.07399666,2617.6,2617.2,1.9104]
[1723315305520,0.07399666,2617.6,2617.3,1.91036]
[1723315309535,2.2771,2617.5,2617.1,2.36872009]
[1723315309913,0.07375525,2617.4,2617.1,2.36872009]
[1723315310327,0.07375525,2617.4,2617.1,4.27918009]
[1723315310525,0.07375525,2617.4,2617.2,1.91041]
[1723315310816,0.07375525,2617.4,2617.3,1.91036]
[1723315311263,2.2771,2617.7,2617.3,1.91036]
[1723315311443,0.07318045,2617.4,2617.3,1.91036]
[1723315311953,2.2771,2617.7,2617.3,1.91036]
[1723315312261,0.07338367,2617.6,2617.3,1.91036]
[1723315312418,0.07338367,2617.6,2617.3,1.91031]
[1723315312622,0.07338367,2617.6,2617.4,1.91028]
[1723315313517,0.07338367,2617.6,2617.3,1.91031]
[1723315313933,5.4124,2617.8,2617.3,1.91031]
[1723315314256,0.07414495,2617.7,2617.3,1.91031]
[1723315314614,5.4124,2617.8,2617.3,1.91031]
[1723315314815,0.07344046,2617.6,2617.5,1.91021]
[1723315315018,5.4124,2617.8,2617.3,1.91031]
[1723315315019,0.07414495,2617.7,2617.3,1.91031]
[1723315315218,1.98422495,2617.7,2617.1,2.36871009]
[1723315315414,2.4124,2617.2,2616.5,7.0602]
[1723315315746,7.32288,2617.2,2616.8,1.15]
[1723315316054,1.98403292,2617.1,2616.8,1.15]
[1723315316430,0.07352292,2617.1,2616.8,1.15]
[1723315317763,0.07352292,2617.1,2616.5,3.8218]
[1723315317965,0.07352292,2617.1,2616.8,1.15]
[1723315318533,0.07352292,2617.1,2616.9,1.91064]
[1723315318735,9.7124,2617.7,2617.0,5.44888]
[1723315319050,3.07424437,2617.6,2617.3,1.15]
[1723315319246,4.73491781,2617.6,2617.3,1.15]
[1723315319456,4.73491781,2617.6,2616.7,9.26079]
[1723315319457,2.4124,2617.4,2616.9,1.91065]
[1723315319659,5.4124,2617.4,2617.1,1.15]
[1723315319858,0.07375035,2617.3,2616.9,1.91065]
[1723315320073,0.07375035,2617.3,2616.9,3.075545]
[1723315320281,0.07375035,2617.3,2616.9,1.91061]
[1723315320570,2.4124,2617.4,2616.9,1.91061]
[1723315320769,0.07378056,2617.3,2616.9,1.91061]
[1723315320980,0.07378056,2617.3,2616.9,3.82121]
[1723315321134,0.07378056,2617.3,2616.9,1.9106]
[1723315321334,0.07378056,2617.3,2616.7,9.26076]
[1723315321577,0.07378056,2617.3,2616.5,2.29309]
[1723315321578,2.4124,2617.2,2616.5,1.91091]
[1723315321874,0.07379891,2617.1,2616.6,1.91086]
[1723315322483,0.07379891,2617.1,2616.8,1.91068]
[1723315322786,0.07379891,2617.1,2616.9,1.91061]
[1723315323445,2.4124,2617.4,2616.9,1.91061]
[1723315323778,2.4124,2617.4,2617.1,1.9105]
[1723315324092,0.0704227,2617.3,2617.1,1.9105]
[1723315324489,7.32255,2617.6,2617.1,1.9105]
[1723315324650,0.07111282,2617.2,2617.1,1.9105]
[1723315324845,5.4124,2617.6,2617.1,1.91045]
[1723315325063,0.07024105,2617.2,2617.1,1.91045]
[1723315325361,0.07111282,2617.2,2617.1,1.91045]
[1723315325570,5.4124,2617.6,2617.1,1.91045]
[1723315325790,0.07051693,2617.5,2617.1,1.91045]
[1723315326383,0.07051693,2617.5,2616.9,1.91064]
[1723315326384,0.07051693,2617.5,2616.9,3.82124]
[1723315326762,0.07051693,2617.5,2617.0,1.91054]
[1723315328966,0.07051693,2617.5,2617.1,1.91049]
[1723315329151,0.07051693,2617.5,2617.3,1.91031]
[1723315329747,3.0,2617.9,2617.4,1.91029]
[1723315329949,0.07163004,2617.8,2617.4,1.91029]
[1723315330166,7.32229,2618.0,2617.4,1.91029]
[1723315330383,0.0704116,2617.9,2617.4,1.91029]
[1723315330591,0.0704116,2617.9,2617.2,2.3883]
[1723315330791,0.0704116,2617.9,2617.6,1.91014]
[1723315330999,0.0704116,2617.9,2617.5,1.91017]
[1723315331851,0.0704116,2617.9,2617.6,1.91014]
[1723315334102,0.0704116,2617.9,2617.7,0.07640046]
[1723315334260,0.0704116,2617.9,2617.8,1.91]
[1723315334701,7.2937,2618.4,2617.7,1.98647046]
[1723315334905,0.07045267,2617.9,2617.7,1.98647046]
[1723315335198,7.2937,2618.4,2617.7,1.98647046]
[1723315335199,0.07035111,2617.8,2617.7,1.98647046]
[1723315335408,1.45937,2618.3,2617.7,1.98647046]
[1723315335558,0.0707573,2618.2,2617.7,3.89649046]
[1723315336097,0.0707573,2618.2,2617.7,1.98642046]
[1723315336389,0.0707573,2618.2,2617.7,3.89645046]
[1723315336590,0.0707573,2618.2,2617.7,1.98642046]
[1723315336810,2.3841,2618.1,2617.7,1.91002]
[1723315336951,0.07055422,2618.0,2617.7,1.91002]
[1723315340088,0.07055422,2618.0,2617.7,1.91001]
[1723315340610,0.07055422,2618.0,2617.7,2.292029]
[1723315341265,0.07055422,2618.0,2617.7,1.91001]
[1723315342167,3.07055422,2618.0,2617.7,1.91001]
[1723315342402,0.07055422,2618.0,2617.7,1.91001]
[1723315344121,0.07055422,2618.0,2617.9,1.90992]
[1723315344610,0.07024622,2618.0,2617.8,6.27404]
[1723315344765,9.2095,2618.5,2617.8,1.90994]
[1723315344766,2.3841,2618.3,2617.8,1.90994]
[1723315344971,0.07071668,2618.2,2617.8,1.90994]
[1723315345199,4.29373,2618.3,2617.6,1.9101]
[1723315345365,1.90978,2618.1,2617.5,1.91021]
[1723315345562,2.45507758,2618.2,2617.7,1.91007]
[1723315345563,0.0708047,2618.0,2617.7,1.91007]
[1723315345767,2.3841,2618.2,2617.7,1.91007]
[1723315345967,0.07093644,2618.1,2617.7,1.91007]
[1723315346267,0.07093644,2618.1,2617.8,0.07639505]
[1723315346470,0.07093644,2618.1,2617.8,0.52044656]
[1723315346699,0.07093644,2618.1,2617.9,1.90991]
[1723315347078,5.3841,2618.4,2617.9,1.90991]
[1723315347283,0.07079141,2618.0,2617.9,1.90991]
[1723315347504,5.3841,2618.4,2617.9,1.90991]
[1723315348014,0.07109601,2618.3,2617.9,1.90991]
[1723315350095,0.07109601,2618.3,2617.9,2.5893571]
[1723315352919,0.07109601,2618.3,2617.9,2.5893271]
[1723315353536,0.07109601,2618.3,2617.9,1.90988]
[1723315353727,0.07109601,2618.3,2618.0,1.149]
[1723315362405,0.07109601,2618.3,2617.5,0.903258]
[1723315362406,0.07109601,2618.3,2617.5,6.18545]
[1723315362620,1.90992,2617.9,2617.5,1.149]
[1723315362848,4.42618446,2617.8,2617.1,2.3651]
[1723315363050,4.42618446,2617.8,2617.1,1.149]
[1723315363051,2.4457,2617.6,2617.1,1.149]
[1723315363246,1.91029,2617.4,2617.1,1.149]
[1723315363554,2.4457,2617.2,2616.9,1.149]
[1723315363708,4.35614,2617.2,2616.9,1.149]
[1723315363911,0.06963273,2617.1,2616.9,1.149]
[1723315365113,0.06963273,2617.1,2617.0,4.27568]
[1723315365506,3.0,2617.6,2617.0,4.27568]
[1723315366306,4.91016,2617.6,2617.0,1.91058]
[1723315366421,4.91016,2617.6,2616.8,2.3651]
[1723315366823,4.91016,2617.6,2617.0,1.91053]
[1723315367013,6.566749,2617.6,2617.0,1.91053]
[1723315368116,0.06987408,2617.5,2617.0,1.91053]
[1723315370456,0.06987408,2617.5,2616.9,1.91058]
[1723315370457,0.06987408,2617.5,2617.1,1.91048]
[1723315373417,0.06987408,2617.5,2617.1,1.91046]
[1723315377203,0.06987408,2617.5,2617.1,3.82092]
[1723315377570,0.06987408,2617.5,2617.1,1.91046]
[1723315380413,2.4433,2617.4,2617.1,1.91046]
[1723315380601,5.4433,2617.4,2617.1,1.91046]
[1723315380914,0.06918316,2617.3,2616.8,1.91072]
[1723315381084,3.06918316,2617.3,2616.7,3.82154]
[1723315381474,3.06918316,2617.3,2616.8,1.91072]
[1723315381676,3.06918316,2617.3,2616.9,1.91064]
[1723315381894,3.06918316,2617.3,2616.9,4.30334]
[1723315382086,0.06918316,2617.3,2617.1,1.91046]
[1723315382286,3.0,2617.5,2617.1,1.91046]
[1723315382622,3.0,2617.5,2617.2,1.91043]
[1723315382778,3.0,2617.6,2617.2,1.91043]
[1723315383176,0.06932796,2617.5,2617.2,1.91043]
[1723315383771,0.06932796,2617.5,2617.4,3.82058]
[1723315384204,7.3,2617.7,2617.6,1.91014]
[1723315384384,1.90974,2618.2,2617.6,1.91014]
[1723315384385,9.20974,2618.2,2617.6,1.91014]
[1723315385288,3.0,2618.1,2617.6,1.91014]
[1723315385689,3.0,2618.1,2617.7,1.149]
[1723315385921,3.0,2618.1,2617.7,3.05905]
[1723315386527,7.3,2618.2,2617.9,1.149]
[1723315387518,7.3,2618.2,2617.9,3.05891]
[1723315387686,3.0,2618.1,2617.9,3.05891]
[1723315389286,3.0,2618.1,2618.0,1.90985]
[1723315389688,3.0,2618.1,2618.0,2.4143701]
[1723315389987,7.3,2618.2,2618.1,1.90978]
[1723315390194,10.3,2618.2,2618.1,3.05878]
[1723315390389,2.4433,2619.4,2618.2,2.3927]
[1723315390594,2.4433,2619.4,2619.0,1.149]
[1723315391726,2.4433,2619.4,2618.9,1.90912]
[1723315391927,3.0,2619.3,2619.0,1.90911]
[1723315392403,3.0,2619.5,2619.0,1.90911]
[1723315392816,3.0,2619.5,2619.1,1.90905]
[1723315394939,4.90882,2619.5,2618.9,1.90912]
[1723315395120,4.90881,2619.5,2618.9,1.90912]
[1723315396029,6.81763,2619.5,2618.7,3.81862]
[1723315396210,6.81763,2619.5,2618.6,2.3927]
[1723315396211,2.3196,2619.1,2618.6,1.90941]
[1723315397035,2.3196,2619.1,2618.5,1.90945]
[1723315397738,2.3196,2619.1,2618.6,1.9094]
[1723315398127,0.06699953,2619.0,2618.6,1.9094]
[1723315402327,0.1267922,2619.2,2618.6,1.9094]
[1723315402533,0.06678699,2618.9,2618.7,2.291215]
[1723315402720,0.1267922,2619.2,2618.7,2.291215]
[1723315402910,0.06668752,2618.8,2618.7,2.291215]
[1723315403114,0.1267922,2619.2,2618.7,2.291215]
[1723315403314,0.06671409,2618.8,2618.7,2.291215]
[1723315403644,0.0667161,2618.8,2618.7,2.291215]
[1723315404005,0.1267922,2619.2,2618.7,2.291215]
[1723315404209,0.1267922,2619.2,2618.9,1.90919]
[1723315404645,0.1267922,2619.2,2618.9,1.90914]
[1723315404848,0.1267922,2619.2,2619.0,1.90911]
[1723315405750,0.1267922,2619.2,2618.9,1.90914]
[1723315405751,0.1267922,2619.2,2619.1,1.90905]
[1723315407611,0.1267922,2619.2,2619.1,8.9849]
[1723315407811,0.1267922,2619.2,2619.1,9.88339]
[1723315408247,0.1267922,2619.2,2619.1,11.79244]
[1723315408946,0.1267922,2619.2,2619.1,9.88339]
[1723315409523,0.1267922,2619.2,2619.1,0.89849]
[1723315409710,0.1267922,2619.2,2618.9,1.90914]
[1723315410052,2.3196,2619.1,2618.8,0.2291215]
[1723315410418,0.06686992,2619.0,2618.8,0.2291215]
[1723315411047,0.06686992,2619.0,2618.7,0.381885]
[1723315412338,0.06686992,2619.0,2618.7,2.291215]
[1723315413824,0.06686992,2619.0,2618.8,1.90919]
[1723315414224,0.1267922,2619.2,2618.8,1.90919]
[1723315414768,0.1267922,2619.2,2618.7,2.291175]
[1723315414769,0.06687128,2619.1,2618.9,1.90919]
[1723315414919,0.06687128,2619.1,2619.0,6.29760693]
[1723315415259,0.1267922,2619.2,2619.1,3.8181]
[1723315415862,0.1267922,2619.2,2619.1,3.89444685]
[1723315416155,0.1267922,2619.2,2619.1,3.8944472]
[1723315417330,0.1267922,2619.2,2619.1,3.8181]
[1723315417527,0.1267922,2619.2,2619.1,1.90905]
[1723315417959,0.19186653,2619.2,2619.1,2.33286965]
[1723315418178,0.19186653,2619.2,2619.1,4.24191965]
[1723315418523,0.19186653,2619.2,2619.1,6.64491965]
[1723315418911,0.1267922,2619.2,2619.1,6.64491965]
[1723315420064,0.1267922,2619.2,2619.1,9.39891965]
[1723315420857,0.1267922,2619.2,2619.1,11.30796965]
[1723315421057,0.1267922,2619.2,2619.1,9.39891965]
[1723315421472,0.1267922,2619.2,2619.1,11.30796965]
[1723315421627,0.1267922,2619.2,2619.1,14.30796965]
[1723315423165,2.2e-06,2619.2,2619.1,16.21701965]
[1723315423379,2.2e-06,2619.2,2619.1,14.30796965]
[1723315425250,2.2e-06,2619.2,2619.1,9.39891965]
[1723315427237,2.2e-06,2619.2,2619.1,6.64491965]
[1723315427871,2.2e-06,2619.2,2619.1,9.39891965]
[1723315428845,2.2e-06,2619.2,2619.1,11.30796965]
[1723315429276,2.2e-06,2619.2,2619.1,9.39891965]
[1723315429450,2.2e-06,2619.2,2619.1,11.30796965]
[1723315431275,2.2e-06,2619.2,2619.1,6.99591965]
[1723315433134,2.2e-06,2619.2,2619.1,1.90905]
[1723315434792,2.2e-06,2619.2,2619.0,1.90912]
[1723315435296,2.2613022,2619.2,2618.8,4.66322]
[1723315435598,2.2613022,2619.2,2618.6,1.9094]
[1723315435599,0.06059832,2619.1,2618.6,1.9094]
[1723315435766,2.2613,2619.0,2618.6,1.9094]
[1723315436155,0.06029695,2618.9,2618.6,1.9094]
[1723315437192,0.06029695,2618.9,2618.6,3.81876]
[1723315437399,0.06029695,2618.9,2618.6,1.90936]
[1723315437757,0.06029695,2618.9,2618.4,1.9095]
[1723315438693,0.06029695,2618.9,2618.5,1.90944]
[1723315439715,0.06029695,2618.9,2618.6,1.9094]
[1723315440202,0.06029695,2618.9,2618.8,1.90927]
[1723315440407,0.06029695,2618.9,2618.6,1.90936]
[1723315440408,0.06029695,2618.9,2618.7,1.90927]
[1723315440570,0.06029695,2618.9,2618.5,4.66343]
[1723315440889,0.06029695,2618.9,2618.5,1.90943]
[1723315442344,0.06029695,2618.9,2618.6,1.9094]
[1723315443118,2.2613,2618.8,2618.6,1.9094]
[1723315443302,2.2613,2618.8,2618.3,1.9096]
[1723315443503,0.0596963,2618.7,2618.3,1.9096]
[1723315443947,2.2613,2618.8,2618.1,1.90972]
[1723315444115,0.05972518,2618.6,2618.1,1.90972]
[1723315444324,0.05982666,2618.7,2618.1,1.90972]
[1723315444540,0.05955851,2618.5,2618.3,1.90963]
[1723315444841,0.05965999,2618.6,2618.4,1.90956]
[1723315445044,2.2613,2618.8,2618.4,1.90956]
[1723315446655,2.2613,2618.8,2618.5,1.90947]
[1723315446812,2.2613,2618.8,2618.6,1.9094]
[1723315447326,2.2613,2618.8,2618.6,1.90936]
[1723315447532,2.2613,2619.1,2618.7,1.90934]
[1723315448619,2.2613,2619.1,2618.6,1.90936]
[1723315448849,2.2613,2619.1,2618.6,3.81873]
[1723315449091,2.2613,2619.1,2618.6,1.90936]
[1723315449654,2.2613,2619.1,2618.6,2.3294393]
[1723315449859,2.2613,2619.1,2618.8,1.90927]
[1723315451001,2.2e-06,2619.2,2618.8,1.90922]
[1723315451196,2.2e-06,2619.2,2618.8,1.9855813]
[1723315452191,2.2e-06,2619.2,2618.8,1.90922]
[1723315452685,2.2e-06,2619.2,2618.8,1.985582]
[1723315453100,2.2e-06,2619.2,2618.8,2.6132792]
[1723315453504,2.2e-06,2619.2,2619.0,1.90911]
[1723315453885,2.2e-06,2619.2,2618.8,2.5369072]
[1723315455186,2.2e-06,2619.2,2618.8,1.90921]
[1723315456395,2.2e-06,2619.2,2618.8,3.81842]
[1723315456599,2.2e-06,2619.2,2619.0,1.90911]
[1723315456785,2.2e-06,2619.2,2618.9,1.90919]
[1723315457989,0.05981605,2619.1,2618.9,1.90919]
[1723315458194,0.05981605,2619.1,2618.9,2.29866586]
[1723315459415,0.05981605,2619.1,2619.0,1.90912]
[1723315459621,0.05981605,2619.1,2618.9,2.29864586]
[1723315461393,0.05981605,2619.1,2618.9,1.90917]
[1723315467024,0.05981605,2619.1,2619.0,1.90912]
[1723315467691,0.05981605,2619.1,2619.0,6.24669791]
[1723315468029,2.2e-06,2619.2,2618.8,7.01534]
[1723315468187,2.2e-06,2619.2,2619.0,1.90912]
[1723315468390,0.05971091,2619.1,2619.0,1.90912]
[1723315469428,0.05971091,2619.1,2619.0,2.290954]
[1723315469792,0.05971091,2619.1,2619.0,3.438954]
[1723315470828,0.05971091,2619.1,2619.0,1.148]
[1723315472691,0.05971091,2619.1,2618.6,1.90937]
[1723315472893,0.05971091,2619.1,2618.8,1.148]
[1723315473635,2.2821,2619.0,2618.8,1.148]
[1723315474047,0.05936601,2618.9,2618.8,1.148]
[1723315476009,0.05936601,2618.9,2618.6,1.148]
[1723315478047,0.05936601,2618.9,2618.8,1.148]
[1723315480251,2.2821022,2619.2,2618.8,1.644665]
[1723315480452,0.05728141,2618.9,2618.8,3.05727]
[1723315480652,2.2821022,2619.2,2618.8,3.05727]
[1723315480813,0.05725244,2618.9,2618.8,3.05727]
[1723315481013,2.2821022,2619.2,2618.8,3.05727]
[1723315481226,0.05722348,2618.9,2618.8,3.05727]
[1723315481430,2.2821022,2619.2,2618.8,3.553933]
[1723315481754,2.2821022,2619.2,2618.9,1.90918]
[1723315481929,0.05729998,2619.1,2618.9,1.90918]
[1723315482447,0.05729998,2619.1,2618.8,3.05726]
[1723315483010,0.05729998,2619.1,2618.9,1.90919]
[1723315483258,2.2821022,2619.2,2618.8,1.148]
[1723315483859,0.05728155,2619.1,2618.8,1.148]
[1723315484149,0.05728155,2619.1,2618.8,3.05726]
[1723315484956,0.05728155,2619.1,2619.0,1.148]
[1723315487526,0.05728155,2619.1,2619.0,5.271958]
[1723315487833,0.05728155,2619.1,2619.0,5.34831399]
[1723315488222,0.05728155,2619.1,2619.0,9.54523399]
[1723315488423,2.2e-06,2619.2,2619.1,3.8181]
[1723315488625,2.2e-06,2619.2,2619.1,3.89444406]
[1723315488930,2.2e-06,2619.2,2619.1,4.84895227]
[1723315493650,2.2e-06,2619.2,2619.1,9.22370227]
[1723315493850,2.2e-06,2619.2,2619.1,9.14735821]
[1723315495362,2.2e-06,2619.2,2619.1,10.29535821]
[1723315498659,2.3111022,2620.2,2619.7,1.90861]
[1723315498879,1.15193222,2620.2,2619.9,1.148]
[1723315499088,0.05872579,2620.1,2619.9,1.148]
[1723315500895,0.05872579,2620.1,2620.0,3.89300717]
[1723315501282,1.90776,2620.9,2620.2,1.90823]
[1723315501469,3.01959771,2620.9,2620.4,1.148]
[1723315501670,2.41938961,2620.8,2620.4,1.148]
[1723315504399,4.32724961,2620.8,2620.4,1.148]
[1723315504594,4.32724961,2620.8,2618.9,12.43]
[1723315504595,2.3611,2620.5,2619.3,1.90889]
[1723315504796,2.3611,2620.3,2619.8,1.148]
[1723315505414,2.3611,2620.1,2619.8,1.148]
[1723315505895,0.05560963,2620.0,2619.8,1.148]
[1723315506600,0.05560963,2620.0,2619.9,1.90846]
[1723315506955,2.3611,2620.4,2620.0,1.90836]
[1723315507189,2.3611,2620.4,2620.2,1.148]
[1723315507894,2.3611,2620.4,2620.2,3.05625]
[1723315508284,2.3611,2620.4,2620.2,1.148]
[1723315508667,2.3611,2620.7,2620.3,1.90812]
[1723315508970,2.3611,2620.7,2620.5,3.05602]
[1723315509233,12.1929971,2621.0,2620.5,3.05602]
[1723315509234,2.3640971,2621.0,2620.5,3.05602]
[1723315509544,2.3640971,2621.0,2620.7,1.148]
[1723315509729,2.3640971,2621.0,2620.6,1.90791]
[1723315509930,2.3640971,2621.0,2620.5,1.90802]
[1723315510150,2.3640971,2621.0,2620.7,1.90783]
[1723315510468,0.0029971,2621.0,2620.7,1.90783]
[1723315511219,0.0029971,2621.0,2620.6,1.9842309]
[1723315511616,0.0029971,2621.0,2620.6,1.90792]
[1723315512565,0.0029971,2621.0,2620.7,1.98412043]
[1723315512766,0.0029971,2621.0,2620.6,0.63580004]
[1723315512767,0.0029971,2621.0,2620.9,3.81548]
[1723315514244,0.0029971,2621.0,2620.9,1.90774]
[1723315514547,2.4127971,2621.0,2620.7,1.90787]
[1723315515426,0.05472196,2620.9,2620.7,1.90787]
[1723315515619,0.05472196,2620.9,2620.7,2.791627]
[1723315515850,0.0029971,2621.0,2620.7,0.883757]
[1723315516237,0.0029971,2621.0,2620.6,3.8158]
[1723315516637,0.0547561,2620.9,2620.6,1.90789]
[1723315517930,0.0547561,2620.9,2620.7,1.90786]
[1723315518141,0.0547561,2620.9,2620.8,1.90781]
[1723315519251,0.0547561,2620.9,2620.5,4.659]
[1723315519451,2.4098,2620.8,2620.5,3.81598]
[1723315519656,2.4098,2620.8,2620.5,4.932578]
[1723315519851,0.0029971,2621.0,2620.7,1.90788]
[1723315520056,0.0029971,2621.0,2620.8,0.0763049]
[1723315520360,0.0029971,2621.0,2620.9,3.81548]
[1723315520525,0.0029971,2621.0,2620.9,4.20465849]
[1723315521260,0.05607236,2621.0,2620.9,4.20465849]
[1723315521470,0.0029971,2621.0,2620.9,4.20465849]
[1723315521979,0.05609654,2621.0,2620.9,4.20465849]
[1723315522151,0.0029971,2621.0,2620.9,4.20465849]